fUSD/lending_fUSD_20250123
["ID","MTS","AMOUNT","RATE_DAILY","PERIOD"]
[350058118,1737594645309,-500.0,0.00020273,2]
[350058119,1737594645318,-500.0,0.00020273,2]
[350058120,1737594645327,-500.0,0.00020273,2]
[350058121,1737594645336,-677.45,0.00020273,2]
[350058122,1737594645346,-634.28,0.00020273,2]
[350058123,1737594645358,-500.0,0.00020273,2]
[350058124,1737594645367,-1419.48,0.00020273,2]
[350058125,1737594645375,-500.0,0.00020273,2]
[350058126,1737594645384,-500.0,0.00020273,2]
[350058127,1737594645394,-2512.85,0.00020273,2]
[350058128,1737594645403,-500.0,0.00020273,2]
[350058129,1737594645414,-500.0,0.00020273,2]
[350058130,1737594645424,-500.0,0.00020273,2]
[350058131,1737594645433,-500.0,0.00020273,2]
[350058132,1737594645442,-529.29,0.00020273,2]
[350058133,1737594645452,-500.0,0.00020273,2]
[350058134,1737594645461,-500.0,0.00020273,2]
[350058135,1737594645472,-500.0,0.00020273,2]
[350058136,1737594645481,-500.0,0.00020273,2]
[350058137,1737594645491,-500.0,0.00020273,2]
[350058138,1737594645500,-1121.13,0.00020273,2]
[350058139,1737594645509,-500.0,0.00020273,2]
[350058140,1737594645520,-500.0,0.00020273,2]
[350058141,1737594645530,-357.90834173,0.00020295,2]
[350058142,1737594645540,-202.62151097,0.00020344,2]
[350058143,1737594645550,-500.0,0.00020372,2]
[350058144,1737594645559,-847.38,0.00020372,2]
[350058146,1737594645571,-500.0,0.00020372,2]
[350058147,1737594645580,-500.0,0.00020372,2]
[350058148,1737594645591,-858.14,0.00020372,2]
[350058149,1737594645601,-509.96,0.00020372,2]
[350058150,1737594645612,-642.87,0.00020372,2]
[350058152,1737594645622,-500.0,0.00020372,2]
[350058153,1737594645633,-500.0,0.00020372,2]
[350058154,1737594645642,-500.0,0.00020372,2]
[350058155,1737594645652,-954.95,0.00020372,2]
[350058156,1737594645663,-887.51,0.00020372,2]
[350058157,1737594645672,-500.0,0.00020372,2]
[350058158,1737594645682,-500.0,0.00020372,2]
[350058159,1737594645692,-1277.85,0.00020372,2]
[350058160,1737594645703,-500.0,0.00020372,2]
[350058161,1737594645712,-549.55,0.00020372,2]
[350058162,1737594645722,-1753.68,0.00020372,2]
[350058163,1737594645731,-500.0,0.00020372,2]
[350058164,1737594645740,-665.69,0.00020372,2]
[350058165,1737594645750,-500.0,0.00020372,2]
[350058166,1737594645759,-528.27,0.00020372,2]
[350058167,1737594645768,-893.59,0.00020372,2]
[350058168,1737594645778,-698.1,0.00020372,2]
[350058169,1737594645787,-2201.44234707,0.00020383,2]
[350058170,1737594645796,-357.90834173,0.00020419,2]
[350058171,1737594645805,-357.90834173,0.00020542,2]
[350058172,1737594645815,-500.0,0.00020546,2]
[350058173,1737594645825,-500.0,0.00020546,2]
[350058174,1737594645834,-500.0,0.00020546,2]
[350058175,1737594645843,-500.0,0.00020546,2]
[350058176,1737594645852,-834.43,0.00020546,2]
[350058177,1737594645861,-533.78,0.00020546,2]
[350058178,1737594645871,-701.47,0.00020546,2]
[350058179,1737594645880,-1099.03,0.00020546,2]
[350058180,1737594645889,-500.0,0.00020546,2]
[350058181,1737594645903,-1207.66,0.00020546,2]
[350058182,1737594645914,-584.3,0.00020546,2]
[350058183,1737594645923,-663.61,0.00020546,2]
[350058184,1737594645932,-1123.9,0.00020546,2]
[350058185,1737594645941,-570.62,0.00020546,2]
[350058186,1737594645950,-500.0,0.00020546,2]
[350058187,1737594645960,-1008.17,0.00020546,2]
[350058188,1737594645969,-500.0,0.00020547,2]
[350058189,1737594645979,-500.0,0.00020547,2]
[350058190,1737594645988,-500.0,0.00020547,2]
[350058191,1737594645997,-500.0,0.00020547,2]
[350058192,1737594646007,-500.0,0.00020547,2]
[350058193,1737594646017,-500.0,0.00020547,2]
[350058194,1737594646028,-591.31,0.00020547,2]
[350058195,1737594646037,-500.0,0.00020547,2]
[350058196,1737594646046,-500.0,0.00020547,2]
[350058197,1737594646056,-500.0,0.00020547,2]
[350058198,1737594646065,-500.0,0.00020547,2]
[350058199,1737594646074,-500.0,0.00020547,2]
[350058200,1737594646083,-500.0,0.00020547,2]
[350058201,1737594646092,-500.0,0.00020547,2]
[350058202,1737594646101,-500.0,0.00020547,2]
[350058203,1737594646111,-559.44054993,0.00020547,2]
[350058204,1737594646119,-500.0,0.00020547,2]
[350058205,1737594646129,-500.0,0.00020547,2]
[350058206,1737594646138,-500.0,0.00020547,2]
[350058207,1737594646147,-500.0,0.00020547,2]
[350058208,1737594646157,-500.0,0.00020547,2]
[350058209,1737594646167,-500.0,0.00020547,2]
[350058211,1737594646178,-500.0,0.00020547,2]
[350058213,1737594646187,-500.0,0.00020547,2]
[350058215,1737594646197,-500.0,0.00020547,2]
[350058217,1737594646207,-500.0,0.00020547,2]
[350058219,1737594646218,-500.0,0.00020547,2]
[350058221,1737594646227,-500.0,0.00020547,2]
[350058223,1737594646236,-500.0,0.00020547,2]
[350058225,1737594646245,-500.0,0.00020547,2]
[350058227,1737594646254,-500.0,0.00020547,2]
[350058229,1737594646263,-500.0,0.00020547,2]
[350058231,1737594646272,-500.0,0.00020547,2]
[350058233,1737594646281,-500.0,0.00020547,2]
[350058235,1737594646290,-500.0,0.00020547,2]
[350058237,1737594646300,-500.0,0.00020547,2]
[350058238,1737594646310,-500.0,0.00020547,2]
[350058239,1737594646319,-500.0,0.00020547,2]
[350058241,1737594646329,-500.0,0.00020547,2]
[350058243,1737594646338,-500.0,0.00020547,2]
[350058245,1737594646348,-500.0,0.00020547,2]
[350058247,1737594646358,-500.0,0.00020547,2]
[350058249,1737594646366,-500.0,0.00020547,2]
[350058251,1737594646375,-500.0,0.00020547,2]
[350058253,1737594646385,-500.0,0.00020547,2]
[350058254,1737594646394,-518.63,0.00020547,2]
[350058255,1737594646402,-698.97,0.00020547,2]
[350058256,1737594646413,-500.0,0.00020547,2]
[350058257,1737594646424,-500.0,0.00020547,2]
[350058258,1737594646433,-1509.45,0.00020547,2]
[350058259,1737594646442,-623.27,0.00020547,2]
[350058260,1737594646451,-689.26,0.00020547,2]
[350058261,1737594646460,-500.0,0.00020547,2]
[350058262,1737594646469,-500.0,0.00020547,2]
[350058263,1737594646478,-500.0,0.00020547,2]
[350058264,1737594646487,-500.0,0.00020547,2]
[350058265,1737594646496,-500.0,0.00020547,2]
[350058266,1737594646505,-812.87,0.00020547,2]
[350058267,1737594646515,-1069.1,0.00020547,2]
[350058268,1737594646525,-1056.13,0.00020547,2]
[350058269,1737594646534,-500.0,0.00020547,2]
[350058270,1737594646543,-500.0,0.00020547,2]
[350058271,1737594646553,-751.52,0.00020547,2]
[350058272,1737594646563,-500.0,0.00020547,2]
[350058273,1737594646572,-563.13,0.00020547,2]
[350058274,1737594646581,-279.48960791,0.00020547,2]
[350058275,1737594646590,-758.25,0.00020547,2]
[350058276,1737594646600,-2050.79,0.00020547,2]
[350058277,1737594646609,-1163.87,0.00020547,2]
[350058278,1737594646619,-1524.26,0.00020547,2]
[350058279,1737594646628,-500.0,0.00020547,2]
[350058280,1737594646637,-500.0,0.00020547,2]
[350058281,1737594646646,-514.7,0.00020547,2]
[350058282,1737594646655,-1237.23,0.00020547,2]
[350058283,1737594646664,-390.35349595,0.00020547,2]
[350058284,1737594646674,-500.0,0.00020547,2]
[350058285,1737594646683,-500.0,0.00020547,2]
[350058286,1737594646692,-1293.23,0.00020547,2]
[350058287,1737594646702,-718.49,0.00020547,2]
[350058288,1737594646711,-500.0,0.00020547,2]
[350058289,1737594646721,-500.0,0.00020547,2]
[350058290,1737594646731,-801.37,0.00020547,2]
[350058291,1737594646740,-500.0,0.00020547,2]
[350058292,1737594646749,-597.66,0.00020547,2]
[350058293,1737594646759,-500.0,0.00020547,2]
[350058294,1737594646768,-500.0,0.00020547,2]
[350058295,1737594646779,-500.0,0.00020547,2]
[350058296,1737594646790,-500.0,0.00020547,2]
[350058297,1737594646800,-1018.98,0.00020547,2]
[350058298,1737594646811,-500.0,0.00020547,2]
[350058299,1737594646820,-500.0,0.00020547,2]
[350058300,1737594646829,-500.0,0.00020547,2]
[350058301,1737594646838,-677.45,0.00020547,2]
[350058302,1737594646847,-634.28,0.00020547,2]
[350058303,1737594646858,-525.95,0.00020547,2]
[350058304,1737594646868,-1419.48,0.00020547,2]
[350058305,1737594646877,-500.0,0.00020547,2]
[350058306,1737594646886,-500.0,0.00020547,2]
[350058307,1737594646895,-2512.85,0.00020547,2]
[350058308,1737594646904,-500.0,0.00020547,2]
[350058309,1737594646915,-500.0,0.00020547,2]
[350058310,1737594646924,-500.0,0.00020547,2]
[350058311,1737594646933,-500.0,0.00020547,2]
[350058312,1737594646944,-529.29,0.00020547,2]
[350058313,1737594646955,-500.0,0.00020547,2]
[350058314,1737594646968,-500.0,0.00020547,2]
[350058315,1737594646977,-1121.13,0.00020547,2]
[350058316,1737594646987,-500.0,0.00020547,2]
[350058317,1737594646997,-500.0,0.00020547,2]
[350058318,1737594647007,-202.62151097,0.00020567,2]
[350058319,1737594647018,-2201.44234707,0.00020636,2]
[350058320,1737594647028,-500.0,0.00020646,2]
[350058321,1737594647037,-847.38,0.00020646,2]
[350058322,1737594647047,-500.0,0.00020646,2]
[350058323,1737594647057,-500.0,0.00020646,2]
[350058324,1737594647066,-858.14,0.00020646,2]
[350058325,1737594647075,-509.96,0.00020646,2]
[350058326,1737594647084,-642.87,0.00020646,2]
[350058327,1737594647093,-500.0,0.00020646,2]
[350058328,1737594647102,-500.0,0.00020646,2]
[350058329,1737594647112,-500.0,0.00020646,2]
[350058330,1737594647123,-954.95,0.00020646,2]
[350058331,1737594647132,-887.51,0.00020646,2]
[350058332,1737594647142,-500.0,0.00020646,2]
[350058333,1737594647152,-500.0,0.00020646,2]
[350058334,1737594647162,-1277.85,0.00020646,2]
[350058335,1737594647171,-500.0,0.00020646,2]
[350058336,1737594647181,-549.55,0.00020646,2]
[350058337,1737594647190,-1753.68,0.00020646,2]
[350058338,1737594647199,-500.0,0.00020646,2]
[350058339,1737594647208,-665.69,0.00020646,2]
[350058340,1737594647219,-500.0,0.00020646,2]
[350058341,1737594647228,-528.27,0.00020646,2]
[350058342,1737594647237,-893.59,0.00020646,2]
[350058343,1737594647247,-357.90834173,0.00020666,2]
[350058344,1737594647256,-500.0,0.0002074,2]
[350058345,1737594647265,-209.0,0.0002075,2]
[350058346,1737594647274,-202.62151097,0.00020789,2]
[350058347,1737594647284,-357.90834173,0.00020789,2]
[350058348,1737594647293,-500.0,0.0002082,2]
[350058349,1737594647302,-500.0,0.0002082,2]
[350058350,1737594647310,-500.0,0.0002082,2]
[350058351,1737594647319,-557.08956268,0.0002082,2]
[350058352,1737594647329,-834.43,0.0002082,2]
[350058353,1737594647339,-533.78,0.0002082,2]
[350058354,1737594647348,-701.47,0.0002082,2]
[350058355,1737594647358,-1099.03,0.0002082,2]
[350058356,1737594647367,-500.0,0.0002082,2]
[350058357,1737594647376,-1207.66,0.0002082,2]
[350058358,1737594647385,-584.3,0.0002082,2]
[350058359,1737594647395,-663.61,0.0002082,2]
[350058360,1737594647404,-1123.9,0.0002082,2]
[350058361,1737594647414,-570.62,0.0002082,2]
[350058362,1737594647423,-500.0,0.0002082,2]
[350058363,1737594647433,-1008.17,0.0002082,2]
[350058364,1737594647443,-500.0,0.00020821,2]
[350058365,1737594647452,-500.0,0.00020821,2]
[350058366,1737594647462,-500.0,0.00020821,2]
[350058367,1737594647471,-420.53221535,0.00020821,2]
[350058368,1737594647480,-500.0,0.00020821,2]
[350058369,1737594647489,-500.0,0.00020821,2]
[350058370,1737594647498,-591.31,0.00020821,2]
[350058371,1737594647507,-500.0,0.00020821,2]
[350058372,1737594647516,-500.0,0.00020821,2]
[350058373,1737594647526,-500.0,0.00020821,2]
[350058374,1737594647535,-500.0,0.00020821,2]
[350058375,1737594647544,-500.0,0.00020821,2]
[350058376,1737594647553,-500.0,0.00020821,2]
[350058377,1737594647562,-500.0,0.00020821,2]
[350058378,1737594647571,-500.0,0.00020821,2]
[350058379,1737594647580,-500.0,0.00020821,2]
[350058380,1737594647590,-500.0,0.00020821,2]
[350058381,1737594647599,-500.0,0.00020821,2]
[350058382,1737594647608,-500.0,0.00020821,2]
[350058383,1737594647617,-423.1710413,0.00020821,2]
[350058384,1737594647626,-500.0,0.00020821,2]
[350058385,1737594647636,-500.0,0.00020821,2]
[350058386,1737594647645,-500.0,0.00020821,2]
[350058387,1737594647654,-500.0,0.00020821,2]
[350058388,1737594647664,-500.0,0.00020821,2]
[350058389,1737594647674,-500.0,0.00020821,2]
[350058390,1737594647682,-500.0,0.00020821,2]
[350058391,1737594647692,-500.0,0.00020821,2]
[350058392,1737594647701,-500.0,0.00020821,2]
[350058393,1737594647711,-500.0,0.00020821,2]
[350058394,1737594647722,-398.49477346,0.00020821,2]
[350058395,1737594647732,-500.0,0.00020821,2]
[350058396,1737594647742,-500.0,0.00020821,2]
[350058397,1737594647752,-500.0,0.00020821,2]
[350058398,1737594647761,-500.0,0.00020821,2]
[350058399,1737594647771,-500.0,0.00020821,2]
[350058400,1737594647780,-500.0,0.00020821,2]
[350058401,1737594647789,-500.0,0.00020821,2]
[350058402,1737594647798,-500.0,0.00020821,2]
[350058403,1737594647808,-500.0,0.00020821,2]
[350058404,1737594647817,-500.0,0.00020821,2]
[350058405,1737594647827,-500.0,0.00020821,2]
[350058406,1737594647836,-500.0,0.00020821,2]
[350058407,1737594647845,-500.0,0.00020821,2]
[350058408,1737594647854,-518.63,0.00020821,2]
[350058409,1737594647863,-698.97,0.00020821,2]
[350058410,1737594647872,-500.0,0.00020821,2]
[350058411,1737594647881,-500.0,0.00020821,2]
[350058412,1737594647890,-1509.45,0.00020821,2]
[350058413,1737594647899,-623.27,0.00020821,2]
[350058414,1737594647908,-689.26,0.00020821,2]
[350058415,1737594647917,-500.0,0.00020821,2]
[350058416,1737594647926,-500.0,0.00020821,2]
[350058417,1737594647935,-500.0,0.00020821,2]
[350058418,1737594647944,-500.0,0.00020821,2]
[350058419,1737594647955,-500.0,0.00020821,2]
[350058420,1737594647966,-812.87,0.00020821,2]
[350058421,1737594647975,-1069.1,0.00020821,2]
[350058422,1737594647985,-1056.13,0.00020821,2]
[350058423,1737594647995,-605.6,0.00020821,2]
[350058424,1737594648006,-540.98,0.00020821,2]
[350058425,1737594648015,-751.52,0.00020821,2]
[350058426,1737594648025,-500.0,0.00020821,2]
[350058427,1737594648035,-563.13,0.00020821,2]
[350058428,1737594648044,-758.25,0.00020821,2]
[350058429,1737594648054,-2050.79,0.00020821,2]
[350058430,1737594648063,-1163.87,0.00020821,2]
[350058431,1737594648073,-1524.26,0.00020821,2]
[350058432,1737594648082,-500.0,0.00020821,2]
[350058433,1737594648092,-500.0,0.00020821,2]
[350058434,1737594648101,-514.7,0.00020821,2]
[350058435,1737594648111,-1237.23,0.00020821,2]
[350058436,1737594648121,-528.79148261,0.00020821,2]
[350058437,1737594648130,-500.0,0.00020821,2]
[350058438,1737594648140,-1293.23,0.00020821,2]
[350058439,1737594648149,-718.49,0.00020821,2]
[350058440,1737594648161,-500.0,0.00020821,2]
[350058441,1737594648171,-500.0,0.00020821,2]
[350058442,1737594648180,-801.37,0.00020821,2]
[350058443,1737594648190,-500.0,0.00020821,2]
[350058444,1737594648199,-597.66,0.00020821,2]
[350058445,1737594648209,-500.0,0.00020821,2]
[350058446,1737594648219,-500.0,0.00020821,2]
[350058447,1737594648228,-500.0,0.00020821,2]
[350058448,1737594648238,-500.0,0.00020821,2]
[350058449,1737594648247,-1018.98,0.00020821,2]
[350058450,1737594648257,-500.0,0.00020821,2]
[350058451,1737594648267,-500.0,0.00020821,2]
[350058452,1737594648276,-500.0,0.00020821,2]
[350058453,1737594648285,-677.45,0.00020821,2]
[350058454,1737594648295,-634.28,0.00020821,2]
[350058455,1737594648304,-1419.48,0.00020821,2]
[350058456,1737594648314,-500.0,0.00020821,2]
[350058457,1737594648323,-2512.85,0.00020821,2]
[350058458,1737594648332,-500.0,0.00020821,2]
[350058459,1737594648342,-500.0,0.00020821,2]
[350058460,1737594648355,-500.0,0.00020821,2]
[350058461,1737594648365,-500.0,0.00020821,2]
[350058462,1737594648374,-500.0,0.00020821,2]
[350058463,1737594648384,-529.29,0.00020821,2]
[350058464,1737594648394,-500.0,0.00020821,2]
[350058465,1737594648403,-500.0,0.00020821,2]
[350058466,1737594648415,-1121.13,0.00020821,2]
[350058467,1737594648426,-500.0,0.00020821,2]
[350058468,1737594648437,-500.0,0.00020821,2]
[350058469,1737594648447,-2201.44234707,0.00020889,2]
[350058470,1737594648457,-1000.0,0.00020906,2]
[350058471,1737594648467,-500.0,0.0002092,2]
[350058472,1737594648479,-847.38,0.0002092,2]
[350058473,1737594648488,-500.0,0.0002092,2]
[350058474,1737594648648,-500.0,0.0002092,2]
[350058475,1737594648661,-858.14,0.0002092,2]
[350058476,1737594648671,-509.96,0.0002092,2]
[350058477,1737594648680,-642.87,0.0002092,2]
[350058478,1737594648690,-500.0,0.0002092,2]
[350058479,1737594648701,-500.0,0.0002092,2]
[350058480,1737594648710,-500.0,0.0002092,2]
[350058481,1737594648721,-954.95,0.0002092,2]
[350058482,1737594648731,-887.51,0.0002092,2]
[350058483,1737594648740,-500.0,0.0002092,2]
[350058484,1737594648750,-500.0,0.0002092,2]
[350058485,1737594648760,-1277.85,0.0002092,2]
[350058486,1737594648769,-500.0,0.0002092,2]
[350058487,1737594648779,-549.55,0.0002092,2]
[350058488,1737594648788,-1753.68,0.0002092,2]
[350058489,1737594648798,-597.6430978,0.0002092,2]
[350058490,1737594648808,-665.69,0.0002092,2]
[350058491,1737594648818,-500.0,0.0002092,2]
[350058492,1737594648828,-528.27,0.0002092,2]
[350058493,1737594648838,-893.59,0.0002092,2]
[350058494,1737594648847,-200.0,0.00021,14]
[350058495,1737594648857,-41559.73793267,0.00021,2]
[350058496,1737594648867,-700.0,0.00021,2]
[350058497,1737594648876,-250.43,0.00021,2]
[350058498,1737594648887,-202.62151097,0.00021011,2]
[350058499,1737594648896,-209.0,0.0002106,2]
[350058500,1737594648906,-500.0,0.00021094,2]
[350058501,1737594648915,-500.0,0.00021094,2]
[350058502,1737594648925,-500.0,0.00021094,2]
[350058503,1737594648942,-834.43,0.00021094,2]
[350058504,1737594648952,-533.78,0.00021094,2]
[350058505,1737594648962,-701.47,0.00021094,2]
[350058506,1737594648971,-1099.03,0.00021094,2]
[350058507,1737594648981,-500.0,0.00021094,2]
[350058508,1737594648990,-1207.66,0.00021094,2]
[350058509,1737594649000,-584.3,0.00021094,2]
[350058510,1737594649010,-663.61,0.00021094,2]
[350058511,1737594649019,-1123.9,0.00021094,2]
[350058512,1737594649029,-570.62,0.00021094,2]
[350058513,1737594649039,-500.0,0.00021094,2]
[350058514,1737594649049,-1008.17,0.00021094,2]
[350058515,1737594649059,-500.0,0.00021095,2]
[350058516,1737594649068,-500.0,0.00021095,2]
[350058517,1737594649078,-500.0,0.00021095,2]
[350058518,1737594649088,-500.0,0.00021095,2]
[350058519,1737594649097,-500.0,0.00021095,2]
[350058520,1737594649106,-591.31,0.00021095,2]
[350058521,1737594649116,-500.0,0.00021095,2]
[350058522,1737594649126,-500.0,0.00021095,2]
[350058523,1737594649136,-500.0,0.00021095,2]
[350058524,1737594649147,-621.31,0.00021095,2]
[350058525,1737594649156,-500.0,0.00021095,2]
[350058526,1737594649168,-500.0,0.00021095,2]
[350058527,1737594649177,-500.0,0.00021095,2]
[350058528,1737594649187,-500.0,0.00021095,2]
[350058529,1737594649196,-500.0,0.00021095,2]
[350058530,1737594649206,-500.0,0.00021095,2]
[350058531,1737594649216,-500.0,0.00021095,2]
[350058532,1737594649225,-500.0,0.00021095,2]
[350058533,1737594649234,-500.0,0.00021095,2]
[350058534,1737594649246,-500.0,0.00021095,2]
[350058535,1737594649255,-500.0,0.00021095,2]
[350058536,1737594649266,-500.0,0.00021095,2]
[350058537,1737594649276,-500.0,0.00021095,2]
[350058538,1737594649285,-500.0,0.00021095,2]
[350058539,1737594649295,-500.0,0.00021095,2]
[350058540,1737594649304,-500.0,0.00021095,2]
[350058541,1737594649314,-500.0,0.00021095,2]
[350058542,1737594649325,-500.0,0.00021095,2]
[350058543,1737594649334,-500.0,0.00021095,2]
[350058544,1737594649344,-500.0,0.00021095,2]
[350058545,1737594649355,-500.0,0.00021095,2]
[350058546,1737594649364,-500.0,0.00021095,2]
[350058547,1737594649373,-500.0,0.00021095,2]
[350058548,1737594649383,-500.0,0.00021095,2]
[350058549,1737594649394,-500.0,0.00021095,2]
[350058550,1737594649404,-215.81,0.00021095,2]
[350058551,1737594649415,-500.0,0.00021095,2]
[350058552,1737594649426,-500.0,0.00021095,2]
[350058553,1737594649438,-500.0,0.00021095,2]
[350058554,1737594649450,-500.0,0.00021095,2]
[350058555,1737594649461,-500.0,0.00021095,2]
[350058556,1737594649471,-518.63,0.00021095,2]
[350058557,1737594649482,-698.97,0.00021095,2]
[350058558,1737594649493,-500.0,0.00021095,2]
[350058559,1737594649504,-500.0,0.00021095,2]
[350058560,1737594649515,-1509.45,0.00021095,2]
[350058561,1737594649525,-623.27,0.00021095,2]
[350058562,1737594649536,-689.26,0.00021095,2]
[350058563,1737594649546,-500.0,0.00021095,2]
[350058564,1737594649556,-500.0,0.00021095,2]
[350058565,1737594649568,-500.0,0.00021095,2]
[350058566,1737594649578,-500.0,0.00021095,2]
[350058567,1737594649589,-500.0,0.00021095,2]
[350058568,1737594649599,-812.87,0.00021095,2]
[350058569,1737594649610,-1069.1,0.00021095,2]
[350058570,1737594649620,-1056.13,0.00021095,2]
[350058571,1737594649630,-751.52,0.00021095,2]
[350058572,1737594649640,-550.98762434,0.00021095,2]
[350058573,1737594649650,-563.13,0.00021095,2]
[350058574,1737594649663,-758.25,0.00021095,2]
[350058575,1737594649673,-2050.79,0.00021095,2]
[350058576,1737594649682,-1163.87,0.00021095,2]
[350058577,1737594649691,-1524.26,0.00021095,2]
[350058578,1737594649703,-500.0,0.00021095,2]
[350058579,1737594649714,-500.0,0.00021095,2]
[350058580,1737594649724,-514.7,0.00021095,2]
[350058581,1737594649736,-1237.23,0.00021095,2]
[350058582,1737594649750,-500.0,0.00021095,2]
[350058583,1737594649760,-1293.23,0.00021095,2]
[350058584,1737594649769,-718.49,0.00021095,2]
[350058585,1737594649780,-500.0,0.00021095,2]
[350058586,1737594649790,-500.0,0.00021095,2]
[350058587,1737594649801,-801.37,0.00021095,2]
[350058588,1737594649811,-500.0,0.00021095,2]
[350058589,1737594649822,-597.66,0.00021095,2]
[350058590,1737594649832,-500.0,0.00021095,2]
[350058591,1737594649843,-500.0,0.00021095,2]
[350058592,1737594649853,-470.72,0.00021095,2]
[350058593,1737594649863,-500.0,0.00021095,2]
[350058594,1737594649875,-1018.98,0.00021095,2]
[350058595,1737594649887,-500.0,0.00021095,2]
[350058596,1737594649897,-500.0,0.00021095,2]
[350058597,1737594649908,-500.0,0.00021095,2]
[350058598,1737594649920,-677.45,0.00021095,2]
[350058599,1737594649931,-634.28,0.00021095,2]
[350058600,1737594649941,-1419.48,0.00021095,2]
[350058601,1737594649951,-500.0,0.00021095,2]
[350058602,1737594649961,-2512.85,0.00021095,2]
[350058603,1737594649971,-500.0,0.00021095,2]
[350058604,1737594649982,-500.0,0.00021095,2]
[350058605,1737594649992,-500.0,0.00021095,2]
[350058606,1737594650003,-500.0,0.00021095,2]
[350058607,1737594650013,-500.0,0.00021095,2]
[350058608,1737594650023,-529.29,0.00021095,2]
[350058609,1737594650033,-500.0,0.00021095,2]
[350058610,1737594650043,-500.0,0.00021095,2]
[350058611,1737594650052,-1121.13,0.00021095,2]
[350058612,1737594650062,-500.0,0.00021095,2]
[350058613,1737594650071,-500.0,0.00021095,2]
[350058614,1737594650080,-2201.44234707,0.00021142,2]
[350058615,1737594650090,-500.0,0.00021194,2]
[350058616,1737594650099,-847.38,0.00021194,2]
[350058617,1737594650109,-500.0,0.00021194,2]
[350058618,1737594650118,-500.0,0.00021194,2]
[350058619,1737594650127,-858.14,0.00021194,2]
[350058620,1737594650137,-509.96,0.00021194,2]
[350058621,1737594650148,-642.87,0.00021194,2]
[350058622,1737594650159,-500.0,0.00021194,2]
[350058623,1737594650170,-500.0,0.00021194,2]
[350058624,1737594650180,-500.0,0.00021194,2]
[350058625,1737594650191,-954.95,0.00021194,2]
[350058626,1737594650201,-887.51,0.00021194,2]
[350058627,1737594650212,-500.0,0.00021194,2]
[350058628,1737594650222,-500.0,0.00021194,2]
[350058629,1737594650232,-1277.85,0.00021194,2]
[350058630,1737594650243,-500.0,0.00021194,2]
[350058631,1737594650252,-549.55,0.00021194,2]
[350058632,1737594650262,-1753.68,0.00021194,2]
[350058633,1737594650271,-665.69,0.00021194,2]
[350058634,1737594650281,-500.0,0.00021194,2]
[350058635,1737594650291,-528.27,0.00021194,2]
[350058636,1737594650301,-893.59,0.00021194,2]
[350058637,1737594650311,-202.62151097,0.00021233,2]
[350058638,1737594650321,-1775.0,0.0002134,2]
[350058639,1737594650331,-500.0,0.00021368,2]
[350058640,1737594650341,-500.0,0.00021368,2]